[Event "Titled Tuesday Blitz August 08 Late 2023"]
[White "Osmonbekov, Talaibek"]
[Black "Grossboss19"]
[WhiteFideId "2017253"]
[WhiteElo "2175"]
[BlackElo "2526"]
[Result "0-1"]
[Round "1"]
[TimeControl "180+1"]
[Date "2023.08.08"]
[WhiteClock "0:00:00"]
[BlackClock "0:00:13"]
[Board "179"]

1. d4 {[%clk 0:02:58]}  Nf6 {[%clk 0:02:56]} 2. Bf4 {[%clk 0:02:58]}  g6 {[%clk 0:02:56]} 3. Nc3 {[%clk 0:02:58]}  d5 {[%clk 0:02:54]} 4. e3 {[%clk 0:02:58]}  Bg7 {[%clk 0:02:54]} 5. Nf3 {[%clk 0:02:58]}  O-O {[%clk 0:02:54]} 6. Ne5 {[%clk 0:02:55]}  c6 {[%clk 0:02:51]} 7. h4 {[%clk 0:02:55]}  Nfd7 {[%clk 0:02:49]} 8. h5 {[%clk 0:02:52]}  Nxe5 {[%clk 0:02:49]} 9. dxe5 {[%clk 0:02:51]}  Nd7 {[%clk 0:02:46]} 10. e6 {[%clk 0:02:48]}  fxe6 {[%clk 0:02:40]} 11. hxg6 {[%clk 0:02:48]}  hxg6 {[%clk 0:02:40]} 12. Bd3 {[%clk 0:02:23]}  Qe8 {[%clk 0:02:13]} 13. Qg4 {[%clk 0:01:53]}  Nf6 {[%clk 0:02:10]} 14. Qxg6 {[%clk 0:01:26]}  Qxg6 {[%clk 0:02:09]} 15. Bxg6 {[%clk 0:01:27]}  Ne8 {[%clk 0:01:55]} 16. Bg5 {[%clk 0:01:09]}  Bf6 {[%clk 0:01:33]} 17. Bh6 {[%clk 0:00:54]}  Bg7 {[%clk 0:01:33]} 18. O-O-O {[%clk 0:00:43]}  Bxh6 {[%clk 0:01:21]} 19. Rxh6 {[%clk 0:00:44]}  Kg7 {[%clk 0:01:18]} 20. Rdh1 {[%clk 0:00:44]}  Nf6 {[%clk 0:01:18]} 21. f3 {[%clk 0:00:25]}  Bd7 {[%clk 0:01:13]} 22. g4 {[%clk 0:00:26]}  Ng8 {[%clk 0:00:49]} 23. Rh7+ {[%clk 0:00:22]}  Kxg6 {[%clk 0:00:49]} 24. f4 {[%clk 0:00:19]}  Rf7 {[%clk 0:00:40]} 25. Rh8 {[%clk 0:00:16]}  Rg7 {[%clk 0:00:37]} 26. Ne2 {[%clk 0:00:15]}  Kf7 {[%clk 0:00:33]} 27. g5 {[%clk 0:00:15]}  e5 {[%clk 0:00:26]} 28. Ng1 {[%clk 0:00:14]}  exf4 {[%clk 0:00:21]} 29. exf4 {[%clk 0:00:15]}  e5 {[%clk 0:00:20]} 30. Nf3 {[%clk 0:00:14]}  exf4 {[%clk 0:00:17]} 31. Ne5+ {[%clk 0:00:14]}  Ke6 {[%clk 0:00:17]} 32. Re1 {[%clk 0:00:11]}  Kd6 {[%clk 0:00:18]} 33. g6 {[%clk 0:00:10]}  Re8 {[%clk 0:00:16]} 34. Nf7+ {[%clk 0:00:10]}  Kc7 {[%clk 0:00:14]} 35. Rf1 {[%clk 0:00:07]}  Rxg6 {[%clk 0:00:14]} 36. Rxf4 {[%clk 0:00:07]}  Nf6 {[%clk 0:00:13]} 37. Rh7 {[%clk 0:00:06]}  Re7 {[%clk 0:00:13]} 38. c4 {[%clk 0:00:03]}  d4 {[%clk 0:00:13]} 39. Kd2 {[%clk 0:00:02]}  Be6 {[%clk 0:00:13]} 40. Ng5 {[%clk 0:00:00]}  Nxh7 {[%clk 0:00:13]} 0-1


[Site "https://www.chess.com"]

[Event "Titled Tuesday Blitz August 08 Late 2023"]
[White "Khandelwal, Ankush"]
[Black "Novikova, Margarita"]
[WhiteFideId "413470"]
[BlackFideId "14109689"]
[WhiteElo "2524"]
[BlackElo "2133"]
[Result "1-0"]
[Round "1"]
[TimeControl "180+1"]
[Date "2023.08.08"]
[WhiteClock "0:00:13"]
[BlackClock "0:00:00"]
[Board "180"]

1. e4 {[%clk 0:02:59]}  d5 {[%clk 0:02:57]} 2. exd5 {[%clk 0:02:57]}  Qxd5 {[%clk 0:02:58]} 3. Nc3 {[%clk 0:02:56]}  Qd6 {[%clk 0:02:57]} 4. d4 {[%clk 0:02:42]}  Nf6 {[%clk 0:02:53]} 5. Nf3 {[%clk 0:02:36]}  Bf5 {[%clk 0:02:38]} 6. Ne5 {[%clk 0:02:21]}  Nbd7 {[%clk 0:02:35]} 7. Nb5 {[%clk 0:02:08]}  Qb6 {[%clk 0:02:34]} 8. Nc4 {[%clk 0:01:54]}  Qe6+ {[%clk 0:02:27]} 9. Be2 {[%clk 0:01:47]}  Nd5 {[%clk 0:02:22]} 10. Ne3 {[%clk 0:01:40]}  O-O-O {[%clk 0:01:52]} 11. Nxa7+ {[%clk 0:01:31]}  Kb8 {[%clk 0:01:51]} 12. Nb5 {[%clk 0:01:32]}  Nxe3 {[%clk 0:01:46]} 13. Bxe3 {[%clk 0:01:27]}  Qc6 {[%clk 0:01:40]} 14. O-O {[%clk 0:01:04]}  Bxc2 {[%clk 0:00:55]} 15. Qd2 {[%clk 0:00:58]}  Ba4 {[%clk 0:00:52]} 16. Rac1 {[%clk 0:00:48]}  Bxb5 {[%clk 0:00:51]} 17. Rxc6 {[%clk 0:00:44]}  Bxc6 {[%clk 0:00:51]} 18. Rc1 {[%clk 0:00:21]}  e6 {[%clk 0:00:26]} 19. Rxc6 {[%clk 0:00:15]}  bxc6 {[%clk 0:00:26]} 20. Ba6 {[%clk 0:00:15]}  Nb6 {[%clk 0:00:25]} 21. Qa5 {[%clk 0:00:15]}  Rd5 {[%clk 0:00:23]} 22. Qc3 {[%clk 0:00:14]}  Be7 {[%clk 0:00:00]} 23. Qxc6 {[%clk 0:00:13]} 1-0


[Site "https://www.chess.com"]

[Event "Titled Tuesday Blitz August 08 Late 2023"]
[White "Semenova, Alina"]
[Black "Loay, Sameer"]
[WhiteFideId "24113875"]
[BlackFideId "8104239"]
[WhiteElo "2108"]
[BlackElo "2523"]
[Result "0-1"]
[Round "1"]
[TimeControl "180+1"]
[Date "2023.08.08"]
[WhiteClock "0:00:02"]
[BlackClock "0:02:08"]
[Board "181"]

1. e4 {[%clk 0:02:55]}  g6 {[%clk 0:02:59]} 2. Nf3 {[%clk 0:02:55]}  Bg7 {[%clk 0:02:59]} 3. d4 {[%clk 0:02:56]}  d6 {[%clk 0:02:59]} 4. Nc3 {[%clk 0:02:56]}  Nf6 {[%clk 0:02:59]} 5. Bc4 {[%clk 0:02:57]}  O-O {[%clk 0:03:00]} 6. O-O {[%clk 0:02:57]}  Nxe4 {[%clk 0:03:00]} 7. Nxe4 {[%clk 0:02:55]}  d5 {[%clk 0:03:00]} 8. Bxd5 {[%clk 0:02:55]}  Qxd5 {[%clk 0:03:00]} 9. Nc3 {[%clk 0:02:54]}  Qd8 {[%clk 0:03:01]} 10. h3 {[%clk 0:02:54]}  c6 {[%clk 0:03:00]} 11. Re1 {[%clk 0:02:52]}  Nd7 {[%clk 0:02:59]} 12. Bg5 {[%clk 0:02:46]}  Nf6 {[%clk 0:03:00]} 13. Qd2 {[%clk 0:02:46]}  Be6 {[%clk 0:02:58]} 14. Bh6 {[%clk 0:02:44]}  Qd7 {[%clk 0:02:57]} 15. Bxg7 {[%clk 0:02:43]}  Kxg7 {[%clk 0:02:57]} 16. Ng5 {[%clk 0:02:33]}  Bd5 {[%clk 0:02:46]} 17. Nxd5 {[%clk 0:01:28]}  cxd5 {[%clk 0:02:46]} 18. Nf3 {[%clk 0:00:51]}  Ne4 {[%clk 0:02:45]} 19. Qf4 {[%clk 0:00:46]}  f6 {[%clk 0:02:45]} 20. c3 {[%clk 0:00:43]}  Rae8 {[%clk 0:02:34]} 21. Qh4 {[%clk 0:00:22]}  e5 {[%clk 0:02:25]} 22. Rad1 {[%clk 0:00:15]}  Qf7 {[%clk 0:02:18]} 23. dxe5 {[%clk 0:00:07]}  fxe5 {[%clk 0:02:18]} 24. Re2 {[%clk 0:00:05]}  h6 {[%clk 0:02:17]} 25. Qg4 {[%clk 0:00:04]}  Nf6 {[%clk 0:02:09]} 26. Qg3 {[%clk 0:00:04]}  Nh5 {[%clk 0:02:07]} 27. Qh2 {[%clk 0:00:03]}  e4 {[%clk 0:02:07]} 28. Nd4 {[%clk 0:00:02]}  Nf4 {[%clk 0:02:08]} 29. Red2 {[%clk 0:00:02]}  Nd3 {[%clk 0:02:07]} 30. Rxd3 {[%clk 0:00:02]}  exd3 {[%clk 0:02:07]} 31. Rxd3 {[%clk 0:00:02]}  Re1# {[%clk 0:02:08]} 0-1


[Site "https://www.chess.com"]

[Event "Titled Tuesday Blitz August 08 Late 2023"]
[White "Ansh M Shah"]
[Black "Maluco_do_Natal_00"]
[WhiteFideId "25033379"]
[WhiteElo "2521"]
[BlackElo "2076"]
[Result "1-0"]
[Round "1"]
[TimeControl "180+1"]
[Date "2023.08.08"]
[WhiteClock "0:00:08"]
[BlackClock "0:00:00"]
[Board "184"]

1. d4 {[%clk 0:02:58]}  d5 {[%clk 0:02:59]} 2. c4 {[%clk 0:02:59]}  c6 {[%clk 0:02:59]} 3. cxd5 {[%clk 0:03:00]}  cxd5 {[%clk 0:02:58]} 4. Nc3 {[%clk 0:03:01]}  Nf6 {[%clk 0:02:59]} 5. Bf4 {[%clk 0:03:01]}  Nc6 {[%clk 0:02:59]} 6. Nf3 {[%clk 0:03:00]}  a6 {[%clk 0:02:43]} 7. e3 {[%clk 0:02:32]}  Bg4 {[%clk 0:02:41]} 8. Rc1 {[%clk 0:02:22]}  Rc8 {[%clk 0:02:31]} 9. Bd3 {[%clk 0:02:18]}  e6 {[%clk 0:02:28]} 10. O-O {[%clk 0:02:12]}  Be7 {[%clk 0:02:23]} 11. Qb3 {[%clk 0:02:10]}  Na5 {[%clk 0:02:19]} 12. Qa4+ {[%clk 0:02:01]}  Nc6 {[%clk 0:02:04]} 13. Ne5 {[%clk 0:01:56]}  Bh5 {[%clk 0:01:52]} 14. Nxc6 {[%clk 0:01:52]}  Rxc6 {[%clk 0:01:52]} 15. Bxa6 {[%clk 0:01:53]}  O-O {[%clk 0:01:35]} 16. Bb5 {[%clk 0:01:39]}  Rc8 {[%clk 0:01:34]} 17. Qb3 {[%clk 0:01:28]}  h6 {[%clk 0:01:11]} 18. h3 {[%clk 0:01:27]}  Bd6 {[%clk 0:01:05]} 19. Bxd6 {[%clk 0:01:22]}  Qxd6 {[%clk 0:01:06]} 20. Na4 {[%clk 0:01:22]}  Ne4 {[%clk 0:00:58]} 21. Qd3 {[%clk 0:01:01]}  Bg6 {[%clk 0:00:48]} 22. Qe2 {[%clk 0:00:56]}  b6 {[%clk 0:00:38]} 23. a3 {[%clk 0:00:51]}  f5 {[%clk 0:00:21]} 24. Ba6 {[%clk 0:00:22]}  Rc7 {[%clk 0:00:14]} 25. Rxc7 {[%clk 0:00:20]}  Qxc7 {[%clk 0:00:14]} 26. Qd1 {[%clk 0:00:17]}  f4 {[%clk 0:00:12]} 27. Qc1 {[%clk 0:00:16]}  Qa7 {[%clk 0:00:08]} 28. Bb5 {[%clk 0:00:13]}  fxe3 {[%clk 0:00:08]} 29. Qxe3 {[%clk 0:00:12]}  Qa5 {[%clk 0:00:06]} 30. Qe2 {[%clk 0:00:09]}  Rc8 {[%clk 0:00:04]} 31. b4 {[%clk 0:00:09]}  Qa7 {[%clk 0:00:03]} 32. f3 {[%clk 0:00:08]}  Ng3 {[%clk 0:00:00]} 33. Qxe6+ {[%clk 0:00:08]} 1-0


[Site "https://www.chess.com"]

[Event "Titled Tuesday Blitz August 08 Late 2023"]
[White "Nikulina, Alena"]
[Black "Glavina, Pablo"]
[WhiteFideId "4172051"]
[BlackFideId "100234"]
[WhiteElo "2075"]
[BlackElo "2520"]
[Result "0-1"]
[Round "1"]
[TimeControl "180+1"]
[Date "2023.08.08"]
[WhiteClock "0:00:01"]
[BlackClock "0:01:14"]
[Board "185"]

1. e4 {[%clk 0:02:51]}  c6 {[%clk 0:02:59]} 2. Nc3 {[%clk 0:02:48]}  d5 {[%clk 0:03:00]} 3. Qe2 {[%clk 0:02:48]}  d4 {[%clk 0:02:59]} 4. Nd1 {[%clk 0:02:47]}  e5 {[%clk 0:02:56]} 5. g3 {[%clk 0:02:47]}  Bd6 {[%clk 0:02:52]} 6. Bg2 {[%clk 0:02:46]}  c5 {[%clk 0:02:52]} 7. d3 {[%clk 0:02:44]}  Nc6 {[%clk 0:02:52]} 8. f4 {[%clk 0:02:43]}  Nge7 {[%clk 0:02:53]} 9. Nf3 {[%clk 0:02:42]}  O-O {[%clk 0:02:53]} 10. O-O {[%clk 0:02:41]}  f6 {[%clk 0:02:51]} 11. f5 {[%clk 0:02:39]}  b5 {[%clk 0:02:50]} 12. g4 {[%clk 0:02:37]}  Kh8 {[%clk 0:02:46]} 13. Kh1 {[%clk 0:02:36]}  a5 {[%clk 0:02:46]} 14. g5 {[%clk 0:02:34]}  c4 {[%clk 0:02:46]} 15. Nf2 {[%clk 0:02:30]}  Ba6 {[%clk 0:02:45]} 16. Nh4 {[%clk 0:02:19]}  cxd3 {[%clk 0:02:40]} 17. cxd3 {[%clk 0:02:18]}  Rc8 {[%clk 0:02:40]} 18. Qh5 {[%clk 0:02:16]}  fxg5 {[%clk 0:02:40]} 19. Bxg5 {[%clk 0:02:10]}  Qe8 {[%clk 0:02:40]} 20. Qxe8 {[%clk 0:01:33]}  Rfxe8 {[%clk 0:02:41]} 21. Ng4 {[%clk 0:01:33]}  Ng8 {[%clk 0:02:18]} 22. Rf3 {[%clk 0:01:06]}  h6 {[%clk 0:01:56]} 23. Bd2 {[%clk 0:00:38]}  Kh7 {[%clk 0:01:39]} 24. f6 {[%clk 0:00:36]}  Nxf6 {[%clk 0:01:32]} 25. Nxf6+ {[%clk 0:00:36]}  gxf6 {[%clk 0:01:33]} 26. Rxf6 {[%clk 0:00:37]}  Bf8 {[%clk 0:01:33]} 27. Raf1 {[%clk 0:00:34]}  Bg7 {[%clk 0:01:33]} 28. Rf7 {[%clk 0:00:32]}  Rf8 {[%clk 0:01:32]} 29. Rxf8 {[%clk 0:00:28]}  Rxf8 {[%clk 0:01:33]} 30. Nf5 {[%clk 0:00:27]}  b4 {[%clk 0:01:31]} 31. Rf3 {[%clk 0:00:21]}  Nd8 {[%clk 0:01:31]} 32. a3 {[%clk 0:00:20]}  bxa3 {[%clk 0:01:30]} 33. bxa3 {[%clk 0:00:20]}  a4 {[%clk 0:01:31]} 34. Bb4 {[%clk 0:00:20]}  Rf7 {[%clk 0:01:31]} 35. Bh3 {[%clk 0:00:20]}  Rc7 {[%clk 0:01:28]} 36. Kg2 {[%clk 0:00:19]}  Ne6 {[%clk 0:01:28]} 37. Nxg7 {[%clk 0:00:17]}  Nf4+ {[%clk 0:01:28]} 38. Kg3 {[%clk 0:00:15]}  Rxg7+ {[%clk 0:01:28]} 39. Kf2 {[%clk 0:00:14]}  Nxd3+ {[%clk 0:01:26]} 40. Ke2 {[%clk 0:00:12]}  Nxb4+ {[%clk 0:01:26]} 41. Kd2 {[%clk 0:00:10]}  Nc6 {[%clk 0:01:26]} 42. Bf5+ {[%clk 0:00:09]}  Kh8 {[%clk 0:01:21]} 43. Rh3 {[%clk 0:00:09]}  Kg8 {[%clk 0:01:14]} 44. Rxh6 {[%clk 0:00:09]}  Bb7 {[%clk 0:01:15]} 45. Rd6 {[%clk 0:00:07]}  Kf7 {[%clk 0:01:11]} 46. Be6+ {[%clk 0:00:07]}  Ke7 {[%clk 0:01:10]} 47. Rd7+ {[%clk 0:00:07]}  Kf6 {[%clk 0:01:11]} 48. Rxg7 {[%clk 0:00:05]}  Kxg7 {[%clk 0:01:12]} 49. Bd5 {[%clk 0:00:06]}  Na5 {[%clk 0:01:12]} 50. Bxb7 {[%clk 0:00:05]}  Nxb7 {[%clk 0:01:13]} 51. Kd3 {[%clk 0:00:01]}  Nc5+ {[%clk 0:01:14]} 0-1


[Site "https://www.chess.com"]

[Event "Titled Tuesday Blitz August 08 Late 2023"]
[White "Gyulamiryan-koryun"]
[Black "Shubenkova, Veronika"]
[BlackFideId "44124040"]
[WhiteElo "2044"]
[BlackElo "2516"]
[Result "1-0"]
[Round "1"]
[TimeControl "180+1"]
[Date "2023.08.08"]
[WhiteClock "0:00:22"]
[BlackClock "0:01:38"]
[Board "189"]

1. e4 {[%clk 0:02:57]}  e6 {[%clk 0:03:00]} 2. d4 {[%clk 0:02:56]}  d5 {[%clk 0:03:00]} 3. Nd2 {[%clk 0:02:54]}  Nf6 {[%clk 0:03:00]} 4. e5 {[%clk 0:02:54]}  Nfd7 {[%clk 0:03:00]} 5. Bd3 {[%clk 0:02:55]}  c5 {[%clk 0:03:01]} 6. c3 {[%clk 0:02:56]}  Nc6 {[%clk 0:03:01]} 7. Ne2 {[%clk 0:02:55]}  a6 {[%clk 0:03:01]} 8. O-O {[%clk 0:02:53]}  b5 {[%clk 0:03:01]} 9. a3 {[%clk 0:02:52]}  Qb6 {[%clk 0:03:01]} 10. Nf3 {[%clk 0:02:50]}  Bb7 {[%clk 0:03:01]} 11. b4 {[%clk 0:02:43]}  c4 {[%clk 0:03:00]} 12. Bc2 {[%clk 0:02:42]}  a5 {[%clk 0:03:00]} 13. Bd2 {[%clk 0:02:33]}  Be7 {[%clk 0:02:59]} 14. h3 {[%clk 0:02:16]}  h6 {[%clk 0:02:58]} 15. Nh2 {[%clk 0:02:14]}  Kd8 {[%clk 0:02:49]} 16. f4 {[%clk 0:02:14]}  g6 {[%clk 0:02:49]} 17. Ng4 {[%clk 0:02:12]}  h5 {[%clk 0:02:49]} 18. Ne3 {[%clk 0:02:10]}  Kc7 {[%clk 0:02:49]} 19. Qb1 {[%clk 0:01:51]}  axb4 {[%clk 0:02:38]} 20. axb4 {[%clk 0:01:50]}  Rxa1 {[%clk 0:02:37]} 21. Qxa1 {[%clk 0:01:50]}  Ra8 {[%clk 0:02:38]} 22. Qb2 {[%clk 0:01:50]}  Qa6 {[%clk 0:02:38]} 23. f5 {[%clk 0:01:39]}  gxf5 {[%clk 0:02:36]} 24. Bxf5 {[%clk 0:01:35]}  exf5 {[%clk 0:02:29]} 25. Nxd5+ {[%clk 0:01:34]}  Kd8 {[%clk 0:02:29]} 26. Rxf5 {[%clk 0:01:28]}  Nxd4 {[%clk 0:02:20]} 27. Nxe7 {[%clk 0:01:08]}  Nxe2+ {[%clk 0:02:10]} 28. Kh2 {[%clk 0:01:04]}  Kxe7 {[%clk 0:02:09]} 29. Bg5+ {[%clk 0:01:03]}  Ke8 {[%clk 0:02:02]} 30. Qxe2 {[%clk 0:01:00]}  Nf8 {[%clk 0:02:01]} 31. Bf6 {[%clk 0:00:51]}  Qa2 {[%clk 0:01:52]} 32. Qf1 {[%clk 0:00:42]}  Qd2 {[%clk 0:01:50]} 33. Bg5 {[%clk 0:00:39]}  Ra2 {[%clk 0:01:49]} 34. Bxd2 {[%clk 0:00:34]}  Rxd2 {[%clk 0:01:48]} 35. Rg5 {[%clk 0:00:32]}  Ne6 {[%clk 0:01:46]} 36. Rg8+ {[%clk 0:00:29]}  Ke7 {[%clk 0:01:46]} 37. Qf6+ {[%clk 0:00:29]}  Kd7 {[%clk 0:01:41]} 38. Qxf7+ {[%clk 0:00:27]}  Kc6 {[%clk 0:01:41]} 39. Qxe6+ {[%clk 0:00:26]}  Kc7 {[%clk 0:01:42]} 40. Rg7+ {[%clk 0:00:26]}  Kb8 {[%clk 0:01:42]} 41. Qe8+ {[%clk 0:00:23]}  Ka7 {[%clk 0:01:38]} 42. Qe7 {[%clk 0:00:22]} 1-0


[Site "https://www.chess.com"]

[Event "Titled Tuesday Blitz August 08 Late 2023"]
[White "Mekhane, Adam"]
[Black "Blackwhite017"]
[WhiteFideId "36050601"]
[WhiteElo "2514"]
[BlackElo "2029"]
[Result "1-0"]
[Round "1"]
[TimeControl "180+1"]
[Date "2023.08.08"]
[WhiteClock "0:00:28"]
[BlackClock "0:00:00"]
[Board "190"]

1. e4 {[%clk 0:02:39]}  c5 {[%clk 0:02:59]} 2. Nf3 {[%clk 0:02:38]}  d6 {[%clk 0:02:54]} 3. d4 {[%clk 0:02:35]}  cxd4 {[%clk 0:02:50]} 4. Qxd4 {[%clk 0:02:33]}  Nc6 {[%clk 0:02:47]} 5. Bb5 {[%clk 0:02:32]}  Bd7 {[%clk 0:02:45]} 6. Bxc6 {[%clk 0:02:30]}  Bxc6 {[%clk 0:02:46]} 7. Nc3 {[%clk 0:02:30]}  Nf6 {[%clk 0:02:31]} 8. Bg5 {[%clk 0:02:25]}  h6 {[%clk 0:02:14]} 9. Bxf6 {[%clk 0:02:23]}  gxf6 {[%clk 0:02:14]} 10. O-O-O {[%clk 0:01:58]}  Qb6 {[%clk 0:02:05]} 11. Qxb6 {[%clk 0:01:49]}  axb6 {[%clk 0:02:04]} 12. a3 {[%clk 0:01:48]}  e6 {[%clk 0:01:48]} 13. Nd4 {[%clk 0:01:42]}  Be7 {[%clk 0:01:37]} 14. Rd3 {[%clk 0:01:33]}  Ra5 {[%clk 0:01:01]} 15. Rhd1 {[%clk 0:01:13]}  Bd7 {[%clk 0:00:06]} 16. Nb3 {[%clk 0:00:28]}  Rg5 {[%clk 0:00:00]} 17. g3 {[%clk 0:00:28]} 1-0


[Site "https://www.chess.com"]

[Event "Titled Tuesday Blitz August 08 Late 2023"]
[White "laskakid"]
[Black "Dragomirescu, Robin-Alexandru"]
[BlackFideId "1213849"]
[WhiteElo "2023"]
[BlackElo "2512"]
[Result "0-1"]
[Round "1"]
[TimeControl "180+1"]
[Date "2023.08.08"]
[WhiteClock "0:00:00"]
[BlackClock "0:00:20"]
[Board "191"]

1. e4 {[%clk 0:02:58]}  g6 {[%clk 0:02:59]} 2. d4 {[%clk 0:02:57]}  Nf6 {[%clk 0:02:59]} 3. e5 {[%clk 0:02:53]}  Nh5 {[%clk 0:02:58]} 4. Be2 {[%clk 0:02:48]}  d6 {[%clk 0:02:58]} 5. Bxh5 {[%clk 0:02:41]}  gxh5 {[%clk 0:02:58]} 6. Qxh5 {[%clk 0:02:40]}  dxe5 {[%clk 0:02:59]} 7. dxe5 {[%clk 0:02:26]}  Qd5 {[%clk 0:02:59]} 8. Nf3 {[%clk 0:02:13]}  Qe4+ {[%clk 0:02:59]} 9. Be3 {[%clk 0:02:03]}  Qxc2 {[%clk 0:02:59]} 10. O-O {[%clk 0:01:57]}  Qg6 {[%clk 0:02:57]} 11. Qh4 {[%clk 0:01:54]}  Rg8 {[%clk 0:02:54]} 12. g3 {[%clk 0:01:43]}  Qg4 {[%clk 0:02:55]} 13. Nbd2 {[%clk 0:01:33]}  Qxh4 {[%clk 0:02:50]} 14. Nxh4 {[%clk 0:01:33]}  Nc6 {[%clk 0:02:49]} 15. Rac1 {[%clk 0:01:32]}  Bh3 {[%clk 0:02:46]} 16. Rfd1 {[%clk 0:01:31]}  O-O-O {[%clk 0:02:41]} 17. a3 {[%clk 0:01:26]}  Kb8 {[%clk 0:02:27]} 18. b4 {[%clk 0:01:20]}  Nxe5 {[%clk 0:02:20]} 19. Bf4 {[%clk 0:01:16]}  Bg7 {[%clk 0:02:20]} 20. Rc5 {[%clk 0:00:48]}  f6 {[%clk 0:01:47]} 21. Re1 {[%clk 0:00:43]}  b6 {[%clk 0:01:43]} 22. Rc3 {[%clk 0:00:37]}  Rd7 {[%clk 0:01:35]} 23. Rec1 {[%clk 0:00:23]}  Rgd8 {[%clk 0:01:32]} 24. Ng2 {[%clk 0:00:14]}  Rxd2 {[%clk 0:01:28]} 25. Bxd2 {[%clk 0:00:13]}  Rxd2 {[%clk 0:01:29]} 26. Rxc7 {[%clk 0:00:11]}  Nf3+ {[%clk 0:01:19]} 27. Kf1 {[%clk 0:00:11]}  Nxh2+ {[%clk 0:01:19]} 28. Ke1 {[%clk 0:00:10]}  Nf3+ {[%clk 0:01:14]} 29. Kf1 {[%clk 0:00:10]}  Bf8 {[%clk 0:00:50]} 30. b5 {[%clk 0:00:09]}  Rd5 {[%clk 0:00:44]} 31. a4 {[%clk 0:00:09]}  Nd2+ {[%clk 0:00:34]} 32. Kg1 {[%clk 0:00:07]}  Nb3 {[%clk 0:00:34]} 33. R1c3 {[%clk 0:00:04]}  Nc5 {[%clk 0:00:30]} 34. Rc6 {[%clk 0:00:03]}  Bxg2 {[%clk 0:00:28]} 35. Kxg2 {[%clk 0:00:03]}  Kb7 {[%clk 0:00:23]} 36. Kf3 {[%clk 0:00:02]}  a6 {[%clk 0:00:22]} 37. g4 {[%clk 0:00:01]}  h5 {[%clk 0:00:20]} 38. gxh5 {[%clk 0:00:01]}  Rxh5 {[%clk 0:00:21]} 39. Kg4 {[%clk 0:00:01]}  Rg5+ {[%clk 0:00:21]} 40. Kf4 {[%clk 0:00:00]}  Re5 {[%clk 0:00:20]} 0-1


[Site "https://www.chess.com"]

[Event "Titled Tuesday Blitz August 08 Late 2023"]
[White "Mattheii"]
[Black "Upper, John"]
[BlackFideId "2606437"]
[WhiteElo "2508"]
[BlackElo "1957"]
[Result "1-0"]
[Round "1"]
[TimeControl "180+1"]
[Date "2023.08.08"]
[WhiteClock "0:01:59"]
[BlackClock "0:01:54"]
[Board "194"]

1. d4 {[%clk 0:02:58]}  Nf6 {[%clk 0:02:59]} 2. c4 {[%clk 0:02:58]}  e6 {[%clk 0:02:59]} 3. Nc3 {[%clk 0:02:58]}  Bb4 {[%clk 0:02:59]} 4. Nf3 {[%clk 0:02:56]}  d5 {[%clk 0:02:58]} 5. Bg5 {[%clk 0:02:55]}  h6 {[%clk 0:02:58]} 6. Bxf6 {[%clk 0:02:56]}  Qxf6 {[%clk 0:02:57]} 7. e3 {[%clk 0:02:57]}  O-O {[%clk 0:02:56]} 8. Rc1 {[%clk 0:02:55]}  b6 {[%clk 0:02:45]} 9. cxd5 {[%clk 0:02:49]}  exd5 {[%clk 0:02:45]} 10. Bd3 {[%clk 0:02:46]}  Bf5 {[%clk 0:02:37]} 11. O-O {[%clk 0:02:44]}  c6 {[%clk 0:02:27]} 12. Ne5 {[%clk 0:02:01]}  Bxd3 {[%clk 0:01:58]} 13. Qxd3 {[%clk 0:02:02]}  Nd7 {[%clk 0:01:54]} 14. Nxd7 {[%clk 0:01:59]} 1-0


[Site "https://www.chess.com"]

[Event "Titled Tuesday Blitz August 08 Late 2023"]
[White "Naroditsky, Daniel"]
[Black "Begmuratov, Alisher"]
[WhiteFideId "2026961"]
[BlackFideId "14203367"]
[WhiteElo "3210"]
[BlackElo "2639"]
[Result "0-1"]
[Round "2"]
[TimeControl "180+1"]
[Date "2023.08.08"]
[WhiteClock "0:00:02"]
[BlackClock "0:00:06"]
[Board "1"]

1. d4 {[%clk 0:02:51]}  Nf6 {[%clk 0:02:58]} 2. Nc3 {[%clk 0:02:51]}  d5 {[%clk 0:02:56]} 3. Bf4 {[%clk 0:02:51]}  c5 {[%clk 0:02:57]} 4. e4 {[%clk 0:02:51]}  Nxe4 {[%clk 0:02:51]} 5. Nxe4 {[%clk 0:02:49]}  dxe4 {[%clk 0:02:46]} 6. dxc5 {[%clk 0:02:50]}  Qa5+ {[%clk 0:02:25]} 7. c3 {[%clk 0:02:50]}  Qxc5 {[%clk 0:02:26]} 8. Qa4+ {[%clk 0:02:50]}  Nc6 {[%clk 0:02:23]} 9. Qxe4 {[%clk 0:02:51]}  g6 {[%clk 0:02:23]} 10. Nf3 {[%clk 0:02:50]}  Bf5 {[%clk 0:02:21]} 11. Qa4 {[%clk 0:02:44]}  Bg7 {[%clk 0:02:19]} 12. Rd1 {[%clk 0:02:43]}  O-O {[%clk 0:02:16]} 13. Be2 {[%clk 0:02:39]}  e5 {[%clk 0:02:13]} 14. Be3 {[%clk 0:02:39]}  Qe7 {[%clk 0:02:13]} 15. O-O {[%clk 0:02:37]}  Rfd8 {[%clk 0:02:12]} 16. h3 {[%clk 0:02:30]}  h6 {[%clk 0:01:46]} 17. Rfe1 {[%clk 0:02:19]}  a6 {[%clk 0:01:41]} 18. Bb6 {[%clk 0:02:17]}  Rxd1 {[%clk 0:01:41]} 19. Rxd1 {[%clk 0:02:18]}  Be6 {[%clk 0:01:40]} 20. Bc4 {[%clk 0:02:14]}  e4 {[%clk 0:01:39]} 21. Nd2 {[%clk 0:02:14]}  f5 {[%clk 0:01:36]} 22. Bxe6+ {[%clk 0:01:42]}  Qxe6 {[%clk 0:01:30]} 23. Qc4 {[%clk 0:01:43]}  Kf7 {[%clk 0:01:27]} 24. Kf1 {[%clk 0:01:36]}  g5 {[%clk 0:01:20]} 25. g4 {[%clk 0:01:32]}  Ne5 {[%clk 0:01:05]} 26. Qc7+ {[%clk 0:01:26]}  Kg8 {[%clk 0:01:05]} 27. Qxb7 {[%clk 0:01:15]}  Rf8 {[%clk 0:01:05]} 28. gxf5 {[%clk 0:01:10]}  Qxf5 {[%clk 0:01:02]} 29. Qxe4 {[%clk 0:01:10]}  Qxh3+ {[%clk 0:01:00]} 30. Kg1 {[%clk 0:01:10]}  Rf4 {[%clk 0:00:47]} 31. Qd5+ {[%clk 0:01:09]}  Kh8 {[%clk 0:00:38]} 32. f3 {[%clk 0:01:09]}  Qg3+ {[%clk 0:00:33]} 33. Kf1 {[%clk 0:01:09]}  Qh3+ {[%clk 0:00:29]} 34. Ke2 {[%clk 0:01:05]}  Qh2+ {[%clk 0:00:29]} 35. Ke3 {[%clk 0:00:57]}  Rf8 {[%clk 0:00:25]} 36. Bc7 {[%clk 0:00:33]}  Re8 {[%clk 0:00:23]} 37. Ne4 {[%clk 0:00:25]}  Qf4+ {[%clk 0:00:22]} 38. Ke2 {[%clk 0:00:26]}  Qxf3+ {[%clk 0:00:23]} 39. Kd2 {[%clk 0:00:26]}  Ng4 {[%clk 0:00:17]} 40. Re1 {[%clk 0:00:27]}  h5 {[%clk 0:00:14]} 41. Qc6 {[%clk 0:00:17]}  Nf6 {[%clk 0:00:12]} 42. Nxf6 {[%clk 0:00:08]}  Qxc6 {[%clk 0:00:11]} 43. Rxe8+ {[%clk 0:00:08]}  Bf8 {[%clk 0:00:12]} 44. Be5 {[%clk 0:00:05]}  Kg7 {[%clk 0:00:10]} 45. Nd7+ {[%clk 0:00:04]}  Kf7 {[%clk 0:00:07]} 46. Rxf8+ {[%clk 0:00:05]}  Ke7 {[%clk 0:00:07]} 47. Bf6+ {[%clk 0:00:05]}  Kxd7 {[%clk 0:00:06]} 48. Ke3 {[%clk 0:00:03]}  Qc5+ {[%clk 0:00:05]} 49. Ke4 {[%clk 0:00:02]}  Qxf8 {[%clk 0:00:06]} 0-1


[Site "https://www.chess.com"]